[Event "Titled Tuesday Blitz February 28 Late 2023"]
[White "Rosen, Eric"]
[Black "Papayan, Oleg"]
[WhiteFideId "2032562"]
[BlackFideId "4193911"]
[WhiteElo "2359"]
[BlackElo "2153"]
[Result "1-0"]
[Round "03"]
[TimeControl "180+2"]
[Date "2023.02.28"]
[WhiteClock "0:01:04"]
[BlackClock "0:00:14"]

1. d4 {[%clk 0:03:00]}  Nf6 {[%clk 0:03:00]} 2. Bf4 {[%clk 0:02:57]}  d5 {[%clk 0:03:00]} 3. e3 {[%clk 0:02:57]}  c5 {[%clk 0:03:00]} 4. Nf3 {[%clk 0:02:57]}  Nc6 {[%clk 0:02:59]} 5. Nbd2 {[%clk 0:02:56]}  e6 {[%clk 0:02:57]} 6. c3 {[%clk 0:02:56]}  Bd6 {[%clk 0:02:56]} 7. Bg3 {[%clk 0:02:56]}  O-O {[%clk 0:02:55]} 8. Bb5 {[%clk 0:02:56]}  a6 {[%clk 0:02:53]} 9. Bxc6 {[%clk 0:02:56]}  bxc6 {[%clk 0:02:54]} 10. Qa4 {[%clk 0:02:56]}  Bb7 {[%clk 0:02:26]} 11. Bxd6 {[%clk 0:02:56]}  Qxd6 {[%clk 0:02:27]} 12. Qa3 {[%clk 0:02:56]}  Nd7 {[%clk 0:02:21]} 13. Nb3 {[%clk 0:02:56]}  e5 {[%clk 0:02:15]} 14. Nxe5 {[%clk 0:02:32]}  Nxe5 {[%clk 0:02:15]} 15. dxe5 {[%clk 0:02:32]}  Qxe5 {[%clk 0:02:15]} 16. Qxc5 {[%clk 0:02:29]}  a5 {[%clk 0:02:04]} 17. O-O {[%clk 0:02:29]}  a4 {[%clk 0:01:54]} 18. Nd4 {[%clk 0:02:29]}  Kh8 {[%clk 0:01:34]} 19. Rfe1 {[%clk 0:02:18]}  f5 {[%clk 0:01:24]} 20. Rad1 {[%clk 0:02:09]}  a3 {[%clk 0:01:23]} 21. b3 {[%clk 0:02:05]}  Rf6 {[%clk 0:01:14]} 22. Nf3 {[%clk 0:01:50]}  Qe4 {[%clk 0:01:08]} 23. Qd4 {[%clk 0:01:46]}  Qe7 {[%clk 0:01:04]} 24. b4 {[%clk 0:01:40]}  Re8 {[%clk 0:00:39]} 25. Rb1 {[%clk 0:01:22]}  Ba6 {[%clk 0:00:39]} 26. Rb3 {[%clk 0:01:20]}  f4 {[%clk 0:00:26]} 27. Rxa3 {[%clk 0:01:18]}  Bc4 {[%clk 0:00:26]} 28. Ra7 {[%clk 0:01:17]}  Qd6 {[%clk 0:00:13]} 29. exf4 {[%clk 0:01:07]}  Rxe1+ {[%clk 0:00:14]} 30. Nxe1 {[%clk 0:01:08]}  Rxf4 {[%clk 0:00:14]} 31. Qxf4 {[%clk 0:01:06]}  Qxf4 {[%clk 0:00:13]} 32. Ra8+ {[%clk 0:01:06]}  Qf8 {[%clk 0:00:14]} 33. Rxf8# {[%clk 0:01:04]} 1-0


[Site "https://www.chess.com"]

[Event "Titled Tuesday Blitz February 28 Late 2023"]
[White "Goncalves, Davi Sulzbacher"]
[Black "Melikyan, Gnel"]
[WhiteFideId "2154510"]
[BlackFideId "54109990"]
[WhiteElo "2182"]
[BlackElo "2138"]
[Result "0-1"]
[Round "03"]
[TimeControl "180+2"]
[Date "2023.02.28"]
[WhiteClock "0:00:13"]
[BlackClock "0:00:35"]

1. c4 {[%clk 0:03:00]}  f5 {[%clk 0:02:50]} 2. Nc3 {[%clk 0:02:59]}  Nf6 {[%clk 0:02:49]} 3. Nf3 {[%clk 0:02:57]}  g6 {[%clk 0:02:50]} 4. d4 {[%clk 0:02:55]}  Bg7 {[%clk 0:02:50]} 5. Qc2 {[%clk 0:02:50]}  d6 {[%clk 0:02:47]} 6. e4 {[%clk 0:02:49]}  O-O {[%clk 0:02:43]} 7. Bd3 {[%clk 0:02:48]}  Nc6 {[%clk 0:02:43]} 8. a3 {[%clk 0:02:41]}  fxe4 {[%clk 0:02:41]} 9. Nxe4 {[%clk 0:02:38]}  Nxe4 {[%clk 0:02:40]} 10. Bxe4 {[%clk 0:02:38]}  Nxd4 {[%clk 0:02:41]} 11. Nxd4 {[%clk 0:02:39]}  Bxd4 {[%clk 0:02:42]} 12. O-O {[%clk 0:02:30]}  Bg7 {[%clk 0:02:31]} 13. Bg5 {[%clk 0:02:25]}  Qe8 {[%clk 0:02:26]} 14. Rae1 {[%clk 0:02:02]}  e5 {[%clk 0:02:16]} 15. c5 {[%clk 0:01:55]}  Qb5 {[%clk 0:01:53]} 16. cxd6 {[%clk 0:01:46]}  cxd6 {[%clk 0:01:54]} 17. Be7 {[%clk 0:01:46]}  Rf7 {[%clk 0:01:39]} 18. Bxd6 {[%clk 0:01:44]}  Bf5 {[%clk 0:01:37]} 19. a4 {[%clk 0:01:14]}  Bxe4 {[%clk 0:01:15]} 20. Rxe4 {[%clk 0:01:09]}  Qd5 {[%clk 0:00:57]} 21. Rd1 {[%clk 0:01:04]}  Qe6 {[%clk 0:00:56]} 22. Qc4 {[%clk 0:00:59]}  Qxc4 {[%clk 0:00:54]} 23. Rxc4 {[%clk 0:00:58]}  Rd8 {[%clk 0:00:52]} 24. Rc2 {[%clk 0:00:17]}  Rfd7 {[%clk 0:00:44]} 25. Rcd2 {[%clk 0:00:18]}  Bh6 {[%clk 0:00:44]} 26. f4 {[%clk 0:00:14]}  Bxf4 {[%clk 0:00:43]} 27. Rd5 {[%clk 0:00:13]}  e4 {[%clk 0:00:35]} 0-1


[Site "https://www.chess.com"]

[Event "Titled Tuesday Blitz February 28 Late 2023"]
[White "Womacka, Mathias"]
[Black "Alikhanov, Felix"]
[WhiteFideId "4611390"]
[BlackFideId "4157427"]
[WhiteElo "2377"]
[BlackElo "2425"]
[Result "0-1"]
[Round "03"]
[TimeControl "180+2"]
[Date "2023.02.28"]
[WhiteClock "0:00:26"]
[BlackClock "0:02:17"]

1. e4 {[%clk 0:03:00]}  e6 {[%clk 0:02:59]} 2. d4 {[%clk 0:02:59]}  d5 {[%clk 0:03:00]} 3. Nd2 {[%clk 0:02:58]}  Nf6 {[%clk 0:02:59]} 4. e5 {[%clk 0:02:58]}  Nfd7 {[%clk 0:03:00]} 5. Bd3 {[%clk 0:02:58]}  c5 {[%clk 0:02:59]} 6. c3 {[%clk 0:02:59]}  Nc6 {[%clk 0:03:00]} 7. Ne2 {[%clk 0:02:59]}  cxd4 {[%clk 0:03:01]} 8. cxd4 {[%clk 0:03:00]}  f6 {[%clk 0:03:01]} 9. exf6 {[%clk 0:02:59]}  Nxf6 {[%clk 0:03:01]} 10. Nf3 {[%clk 0:02:59]}  Bd6 {[%clk 0:03:00]} 11. O-O {[%clk 0:02:59]}  O-O {[%clk 0:03:01]} 12. Bf4 {[%clk 0:02:58]}  Bxf4 {[%clk 0:03:01]} 13. Nxf4 {[%clk 0:02:58]}  Ng4 {[%clk 0:03:01]} 14. g3 {[%clk 0:02:52]}  g5 {[%clk 0:02:59]} 15. Ng2 {[%clk 0:02:34]}  Qf6 {[%clk 0:02:58]} 16. Be2 {[%clk 0:02:34]}  Nh6 {[%clk 0:02:57]} 17. Ne3 {[%clk 0:02:16]}  Nf5 {[%clk 0:02:57]} 18. Ng4 {[%clk 0:02:08]}  Qg7 {[%clk 0:02:53]} 19. Bb5 {[%clk 0:02:00]}  Ncxd4 {[%clk 0:02:50]} 20. Nxd4 {[%clk 0:01:46]}  Nxd4 {[%clk 0:02:50]} 21. Ba4 {[%clk 0:01:35]}  e5 {[%clk 0:02:47]} 22. f3 {[%clk 0:01:10]}  Rxf3 {[%clk 0:02:34]} 23. Rxf3 {[%clk 0:01:02]}  Bxg4 {[%clk 0:02:34]} 24. Rf8+ {[%clk 0:01:01]}  Rxf8 {[%clk 0:02:33]} 25. Qxg4 {[%clk 0:01:02]}  e4 {[%clk 0:02:22]} 26. Rf1 {[%clk 0:00:27]}  Nf3+ {[%clk 0:02:20]} 27. Kg2 {[%clk 0:00:27]}  Qxb2+ {[%clk 0:02:18]} 28. Kh3 {[%clk 0:00:26]}  Qxh2# {[%clk 0:02:17]} 0-1


[Site "https://www.chess.com"]

[Event "Titled Tuesday Blitz February 28 Late 2023"]
[White "Thomforde-Toates, Noah"]
[Black "Przybylski, Wojciech"]
[WhiteFideId "30951992"]
[BlackFideId "1117599"]
[WhiteElo "2627"]
[BlackElo "2222"]
[Result "1-0"]
[Round "03"]
[TimeControl "180+2"]
[Date "2023.02.28"]
[WhiteClock "0:00:18"]
[BlackClock "0:00:03"]

1. e4 {[%clk 0:03:00]}  c5 {[%clk 0:02:57]} 2. Nf3 {[%clk 0:03:00]}  e6 {[%clk 0:02:57]} 3. d4 {[%clk 0:02:58]}  cxd4 {[%clk 0:02:57]} 4. Nxd4 {[%clk 0:02:58]}  Nc6 {[%clk 0:02:57]} 5. Nc3 {[%clk 0:02:58]}  Qc7 {[%clk 0:02:57]} 6. Be3 {[%clk 0:02:56]}  a6 {[%clk 0:02:57]} 7. a3 {[%clk 0:02:57]}  Nf6 {[%clk 0:02:46]} 8. Be2 {[%clk 0:02:56]}  b5 {[%clk 0:02:44]} 9. O-O {[%clk 0:02:56]}  Bb7 {[%clk 0:02:44]} 10. f3 {[%clk 0:02:51]}  Be7 {[%clk 0:02:32]} 11. Qd2 {[%clk 0:02:51]}  O-O {[%clk 0:02:30]} 12. Rad1 {[%clk 0:02:47]}  Rad8 {[%clk 0:02:29]} 13. Kh1 {[%clk 0:02:47]}  d5 {[%clk 0:02:26]} 14. exd5 {[%clk 0:02:42]}  Nxd5 {[%clk 0:02:23]} 15. Nxd5 {[%clk 0:02:42]}  Rxd5 {[%clk 0:02:21]} 16. Qe1 {[%clk 0:02:42]}  Nxd4 {[%clk 0:02:18]} 17. Bxd4 {[%clk 0:02:37]}  Rh5 {[%clk 0:01:20]} 18. h3 {[%clk 0:02:25]}  Qxc2 {[%clk 0:01:08]} 19. Bd3 {[%clk 0:02:20]}  Qc7 {[%clk 0:01:04]} 20. Bg1 {[%clk 0:02:09]}  Bh4 {[%clk 0:00:59]} 21. Qe2 {[%clk 0:02:01]}  Bg3 {[%clk 0:00:58]} 22. Rc1 {[%clk 0:01:59]}  Qe5 {[%clk 0:00:55]} 23. Qxe5 {[%clk 0:01:46]}  Rxe5 {[%clk 0:00:53]} 24. Bh2 {[%clk 0:01:42]}  Bxh2 {[%clk 0:00:52]} 25. Kxh2 {[%clk 0:01:43]}  Rd8 {[%clk 0:00:47]} 26. Rc7 {[%clk 0:01:30]}  Bd5 {[%clk 0:00:41]} 27. Rfc1 {[%clk 0:01:28]}  g6 {[%clk 0:00:39]} 28. Kg3 {[%clk 0:01:23]}  Re3 {[%clk 0:00:37]} 29. Bf1 {[%clk 0:01:21]}  Rb3 {[%clk 0:00:26]} 30. R1c2 {[%clk 0:01:20]}  Kg7 {[%clk 0:00:20]} 31. Kf4 {[%clk 0:01:20]}  Kf6 {[%clk 0:00:20]} 32. Ra7 {[%clk 0:01:19]}  Rd6 {[%clk 0:00:19]} 33. h4 {[%clk 0:01:15]}  e5+ {[%clk 0:00:18]} 34. Kg4 {[%clk 0:01:12]}  h5+ {[%clk 0:00:18]} 35. Kg3 {[%clk 0:01:12]}  e4 {[%clk 0:00:18]} 36. Be2 {[%clk 0:01:10]}  exf3 {[%clk 0:00:17]} 37. Bxf3 {[%clk 0:01:10]}  Be6 {[%clk 0:00:16]} 38. Kf2 {[%clk 0:01:06]}  Bf5 {[%clk 0:00:16]} 39. Re2 {[%clk 0:01:02]}  Rbd3 {[%clk 0:00:16]} 40. Ree7 {[%clk 0:01:00]}  Be6 {[%clk 0:00:16]} 41. Reb7 {[%clk 0:01:00]}  Rd2+ {[%clk 0:00:16]} 42. Kg3 {[%clk 0:01:00]}  Rxb2 {[%clk 0:00:16]} 43. a4 {[%clk 0:00:59]}  Rb3 {[%clk 0:00:16]} 44. a5 {[%clk 0:00:58]}  Ra3 {[%clk 0:00:15]} 45. Rb6 {[%clk 0:00:58]}  Rd4 {[%clk 0:00:15]} 46. Rbxa6 {[%clk 0:00:56]}  Rg4+ {[%clk 0:00:15]} 47. Kf2 {[%clk 0:00:55]}  Rxh4 {[%clk 0:00:15]} 48. Rb6 {[%clk 0:00:55]}  Rb4 {[%clk 0:00:14]} 49. Kg3 {[%clk 0:00:52]}  h4+ {[%clk 0:00:13]} 50. Kh2 {[%clk 0:00:52]}  Rb2 {[%clk 0:00:14]} 51. Bd5 {[%clk 0:00:50]}  h3 {[%clk 0:00:11]} 52. Rxf7+ {[%clk 0:00:42]}  Kg5 {[%clk 0:00:10]} 53. Rxe6 {[%clk 0:00:40]}  Rd2 {[%clk 0:00:10]} 54. Re5+ {[%clk 0:00:39]}  Kh6 {[%clk 0:00:09]} 55. Bb7 {[%clk 0:00:37]}  hxg2 {[%clk 0:00:09]} 56. Re1 {[%clk 0:00:37]}  Ra4 {[%clk 0:00:08]} 57. Bxg2 {[%clk 0:00:29]}  Rg4 {[%clk 0:00:08]} 58. Rg1 {[%clk 0:00:25]}  Ra2 {[%clk 0:00:06]} 59. Kh3 {[%clk 0:00:24]}  Rg5 {[%clk 0:00:04]} 60. Ra7 {[%clk 0:00:23]}  b4 {[%clk 0:00:04]} 61. Rb7 {[%clk 0:00:17]}  Rgxa5 {[%clk 0:00:01]} 62. Rxb4 {[%clk 0:00:17]}  R5a3+ {[%clk 0:00:01]} 63. Kh2 {[%clk 0:00:16]}  Ra4 {[%clk 0:00:02]} 64. Rxa4 {[%clk 0:00:17]}  Rxa4 {[%clk 0:00:02]} 65. Kg3 {[%clk 0:00:17]}  Ra5 {[%clk 0:00:02]} 66. Rh1+ {[%clk 0:00:17]}  Rh5 {[%clk 0:00:03]} 67. Rb1 {[%clk 0:00:17]}  Rg5+ {[%clk 0:00:03]} 68. Kf2 {[%clk 0:00:18]}  Rf5+ {[%clk 0:00:04]} 69. Bf3 {[%clk 0:00:19]}  Re5 {[%clk 0:00:04]} 70. Kg3 {[%clk 0:00:19]}  Kg5 {[%clk 0:00:04]} 71. Rb6 {[%clk 0:00:19]}  Rc5 {[%clk 0:00:04]} 72. Be4 {[%clk 0:00:19]}  Rc3+ {[%clk 0:00:04]} 73. Kf2 {[%clk 0:00:19]}  Kf4 {[%clk 0:00:04]} 74. Bxg6 {[%clk 0:00:19]}  Rf3+ {[%clk 0:00:05]} 75. Ke2 {[%clk 0:00:19]}  Re3+ {[%clk 0:00:05]} 76. Kd2 {[%clk 0:00:19]}  Re5 {[%clk 0:00:05]} 77. Bd3 {[%clk 0:00:20]}  Re7 {[%clk 0:00:05]} 78. Rb4+ {[%clk 0:00:19]}  Kf3 {[%clk 0:00:05]} 79. Rb6 {[%clk 0:00:19]}  Rf7 {[%clk 0:00:05]} 80. Be2+ {[%clk 0:00:17]}  Kf2 {[%clk 0:00:05]} 81. Bd3 {[%clk 0:00:17]}  Rf8 {[%clk 0:00:04]} 82. Rb1 {[%clk 0:00:17]}  Kg2 {[%clk 0:00:04]} 83. Re1 {[%clk 0:00:16]}  Rf2+ {[%clk 0:00:04]} 84. Ke3 {[%clk 0:00:16]}  Rf7 {[%clk 0:00:03]} 85. Be4+ {[%clk 0:00:16]}  Kh2 {[%clk 0:00:03]} 86. Rh1+ {[%clk 0:00:16]}  Kg3 {[%clk 0:00:04]} 87. Rg1+ {[%clk 0:00:16]}  Kh2 {[%clk 0:00:04]} 88. Rg5 {[%clk 0:00:16]}  Rf1 {[%clk 0:00:03]} 89. Bf3 {[%clk 0:00:16]}  Re1+ {[%clk 0:00:03]} 90. Kf4 {[%clk 0:00:17]}  Re8 {[%clk 0:00:03]} 91. Rh5+ {[%clk 0:00:17]}  Kg1 {[%clk 0:00:03]} 92. Rh1+ {[%clk 0:00:17]}  Kf2 {[%clk 0:00:03]} 93. Rh2+ {[%clk 0:00:18]}  Kf1 {[%clk 0:00:04]} 94. Ra2 {[%clk 0:00:17]}  Rf8+ {[%clk 0:00:03]} 95. Ke3 {[%clk 0:00:17]}  Re8+ {[%clk 0:00:04]} 96. Be4 {[%clk 0:00:18]}  Kg1 {[%clk 0:00:04]} 97. Rg2+ {[%clk 0:00:17]}  Kf1 {[%clk 0:00:05]} 98. Rg5 {[%clk 0:00:18]}  Rb8 {[%clk 0:00:03]} 99. Bd3+ {[%clk 0:00:17]}  Ke1 {[%clk 0:00:03]} 100. Rg1# {[%clk 0:00:18]} 1-0


[Site "https://www.chess.com"]

[Event "Titled Tuesday Blitz February 28 Late 2023"]
[White "Plotkin, Victor"]
[Black "Alex_Sahakyan2006"]
[WhiteFideId "2606674"]
[WhiteElo "2214"]
[BlackElo "2626"]
[Result "0-1"]
[Round "03"]
[TimeControl "180+2"]
[Date "2023.02.28"]
[WhiteClock "0:00:19"]
[BlackClock "0:01:32"]

1. e4 {[%clk 0:03:00]}  c5 {[%clk 0:02:58]} 2. c3 {[%clk 0:02:58]}  Nc6 {[%clk 0:02:52]} 3. d4 {[%clk 0:02:58]}  cxd4 {[%clk 0:02:51]} 4. cxd4 {[%clk 0:02:59]}  d5 {[%clk 0:02:52]} 5. Nc3 {[%clk 0:02:39]}  dxe4 {[%clk 0:02:49]} 6. d5 {[%clk 0:02:40]}  Ne5 {[%clk 0:02:48]} 7. Nxe4 {[%clk 0:02:31]}  Nf6 {[%clk 0:02:44]} 8. Nxf6+ {[%clk 0:02:11]}  exf6 {[%clk 0:02:45]} 9. Bb5+ {[%clk 0:02:10]}  Bd7 {[%clk 0:02:45]} 10. Bxd7+ {[%clk 0:02:10]}  Qxd7 {[%clk 0:02:45]} 11. Ne2 {[%clk 0:01:58]}  Bb4+ {[%clk 0:02:43]} 12. Bd2 {[%clk 0:01:48]}  Nd3+ {[%clk 0:02:43]} 13. Kf1 {[%clk 0:01:46]}  Nxb2 {[%clk 0:02:33]} 14. Qb3 {[%clk 0:01:34]}  Bxd2 {[%clk 0:02:32]} 15. Qxb2 {[%clk 0:01:33]}  Ba5 {[%clk 0:02:32]} 16. Rd1 {[%clk 0:01:24]}  O-O {[%clk 0:02:27]} 17. g3 {[%clk 0:01:19]}  Qh3+ {[%clk 0:02:26]} 18. Kg1 {[%clk 0:01:15]}  Rfe8 {[%clk 0:02:13]} 19. Nf4 {[%clk 0:01:07]}  Qf5 {[%clk 0:02:05]} 20. Qd4 {[%clk 0:00:57]}  Bb6 {[%clk 0:02:05]} 21. Qd3 {[%clk 0:00:50]}  Qxd3 {[%clk 0:01:59]} 22. Rxd3 {[%clk 0:00:45]}  Re1+ {[%clk 0:01:46]} 23. Kg2 {[%clk 0:00:44]}  Rxh1 {[%clk 0:01:47]} 24. Kxh1 {[%clk 0:00:44]}  Bxf2 {[%clk 0:01:41]} 25. d6 {[%clk 0:00:41]}  Rd8 {[%clk 0:01:41]} 26. d7 {[%clk 0:00:39]}  Kf8 {[%clk 0:01:41]} 27. Kg2 {[%clk 0:00:36]}  Bb6 {[%clk 0:01:39]} 28. Kf3 {[%clk 0:00:35]}  Bc7 {[%clk 0:01:38]} 29. Nh5 {[%clk 0:00:26]}  Be5 {[%clk 0:01:33]} 30. h3 {[%clk 0:00:20]}  g6 {[%clk 0:01:32]} 31. Nf4 {[%clk 0:00:20]}  Bxf4 {[%clk 0:01:32]} 32. Kxf4 {[%clk 0:00:19]}  Ke7 {[%clk 0:01:32]} 0-1


[Site "https://www.chess.com"]

[Event "Titled Tuesday Blitz February 28 Late 2023"]
[White "Golubev, Mikhail"]
[Black "Kvaloy, Aksel Bu"]
[WhiteFideId "14100983"]
[BlackFideId "1528815"]
[WhiteElo "2374"]
[BlackElo "2208"]
[Result "1/2-1/2"]
[Round "03"]
[TimeControl "180+2"]
[Date "2023.02.28"]
[WhiteClock "0:00:12"]
[BlackClock "0:00:09"]

1. e4 {[%clk 0:03:00]}  e5 {[%clk 0:02:58]} 2. Nf3 {[%clk 0:03:00]}  Nf6 {[%clk 0:02:53]} 3. Nc3 {[%clk 0:02:55]}  Nc6 {[%clk 0:02:53]} 4. d4 {[%clk 0:02:55]}  exd4 {[%clk 0:02:54]} 5. Nxd4 {[%clk 0:02:56]}  Bb4 {[%clk 0:02:54]} 6. Nxc6 {[%clk 0:02:56]}  bxc6 {[%clk 0:02:55]} 7. Bd3 {[%clk 0:02:56]}  d5 {[%clk 0:02:55]} 8. exd5 {[%clk 0:02:56]}  O-O {[%clk 0:02:56]} 9. O-O {[%clk 0:02:55]}  cxd5 {[%clk 0:02:56]} 10. Bg5 {[%clk 0:02:53]}  c6 {[%clk 0:02:56]} 11. Na4 {[%clk 0:02:53]}  Bd6 {[%clk 0:02:52]} 12. Re1 {[%clk 0:02:44]}  h6 {[%clk 0:02:52]} 13. Bh4 {[%clk 0:02:43]}  c5 {[%clk 0:02:43]} 14. c3 {[%clk 0:02:42]}  Bd7 {[%clk 0:02:35]} 15. Bc2 {[%clk 0:02:37]}  g6 {[%clk 0:02:29]} 16. Bg3 {[%clk 0:02:13]}  Bxg3 {[%clk 0:02:25]} 17. hxg3 {[%clk 0:02:14]}  Qc7 {[%clk 0:02:22]} 18. Qf3 {[%clk 0:01:59]}  Kg7 {[%clk 0:02:22]} 19. Qf4 {[%clk 0:01:38]}  Qxf4 {[%clk 0:02:16]} 20. gxf4 {[%clk 0:01:38]}  Rfc8 {[%clk 0:02:16]} 21. a3 {[%clk 0:01:16]}  Rab8 {[%clk 0:02:02]} 22. Rab1 {[%clk 0:01:13]}  a5 {[%clk 0:02:00]} 23. Re5 {[%clk 0:00:59]}  Rb7 {[%clk 0:01:26]} 24. f3 {[%clk 0:00:57]}  Bxa4 {[%clk 0:01:13]} 25. Bxa4 {[%clk 0:00:57]}  Rcb8 {[%clk 0:01:13]} 26. b3 {[%clk 0:00:50]}  c4 {[%clk 0:01:04]} 27. b4 {[%clk 0:00:49]}  axb4 {[%clk 0:01:03]} 28. axb4 {[%clk 0:00:46]}  Ra7 {[%clk 0:01:02]} 29. Bc6 {[%clk 0:00:42]}  Ra3 {[%clk 0:01:01]} 30. Bxd5 {[%clk 0:00:41]}  Nxd5 {[%clk 0:01:00]} 31. Rxd5 {[%clk 0:00:41]}  Rxc3 {[%clk 0:01:00]} 32. Rc5 {[%clk 0:00:36]}  Rb3 {[%clk 0:00:58]} 33. Rc1 {[%clk 0:00:36]}  R8xb4 {[%clk 0:00:43]} 34. R5xc4 {[%clk 0:00:35]}  Rb7 {[%clk 0:00:41]} 35. R1c2 {[%clk 0:00:32]}  Rb1+ {[%clk 0:00:40]} 36. Kf2 {[%clk 0:00:32]}  Rd1 {[%clk 0:00:38]} 37. g4 {[%clk 0:00:29]}  Rh1 {[%clk 0:00:36]} 38. Rc7 {[%clk 0:00:23]}  Rxc7 {[%clk 0:00:33]} 39. Rxc7 {[%clk 0:00:22]}  h5 {[%clk 0:00:34]} 40. g5 {[%clk 0:00:15]}  Ra1 {[%clk 0:00:31]} 41. Kg3 {[%clk 0:00:13]}  Ra2 {[%clk 0:00:29]} 42. Rc8 {[%clk 0:00:12]}  Re2 {[%clk 0:00:25]} 43. Rb8 {[%clk 0:00:12]}  Rd2 {[%clk 0:00:18]} 44. Rc8 {[%clk 0:00:12]}  Rd7 {[%clk 0:00:17]} 45. Rb8 {[%clk 0:00:11]}  f6 {[%clk 0:00:17]} 46. gxf6+ {[%clk 0:00:10]}  Kxf6 {[%clk 0:00:18]} 47. Rb6+ {[%clk 0:00:10]}  Kg7 {[%clk 0:00:19]} 48. Rb5 {[%clk 0:00:10]}  Rf7 {[%clk 0:00:18]} 49. Rg5 {[%clk 0:00:09]}  Kh6 {[%clk 0:00:18]} 50. Rc5 {[%clk 0:00:08]}  Rd7 {[%clk 0:00:18]} 51. Re5 {[%clk 0:00:06]}  Rd1 {[%clk 0:00:18]} 52. Re6 {[%clk 0:00:06]}  Kg7 {[%clk 0:00:17]} 53. Rb6 {[%clk 0:00:06]}  Rg1+ {[%clk 0:00:17]} 54. Kf2 {[%clk 0:00:06]}  Ra1 {[%clk 0:00:18]} 55. Kg3 {[%clk 0:00:06]}  Ra5 {[%clk 0:00:17]} 56. Rb7+ {[%clk 0:00:06]}  Kf6 {[%clk 0:00:17]} 57. Rb6+ {[%clk 0:00:06]}  Kf5 {[%clk 0:00:18]} 58. Rb8 {[%clk 0:00:06]}  Ra1 {[%clk 0:00:17]} 59. Rb5+ {[%clk 0:00:06]}  Kf6 {[%clk 0:00:17]} 60. Rb6+ {[%clk 0:00:07]}  Kg7 {[%clk 0:00:18]} 61. Rb7+ {[%clk 0:00:07]}  Kh6 {[%clk 0:00:18]} 62. Rb6 {[%clk 0:00:07]}  Rg1+ {[%clk 0:00:17]} 63. Kh2 {[%clk 0:00:07]}  Rf1 {[%clk 0:00:17]} 64. f5 {[%clk 0:00:07]}  Rxf3 {[%clk 0:00:09]} 65. Rxg6+ {[%clk 0:00:07]}  Kh7 {[%clk 0:00:10]} 66. Rg5 {[%clk 0:00:08]}  Kh6 {[%clk 0:00:07]} 67. Rg6+ {[%clk 0:00:08]}  Kh7 {[%clk 0:00:07]} 68. Rg5 {[%clk 0:00:09]}  h4 {[%clk 0:00:08]} 69. Rh5+ {[%clk 0:00:09]}  Kg7 {[%clk 0:00:09]} 70. Rxh4 {[%clk 0:00:07]}  Rxf5 {[%clk 0:00:09]} 71. Rg4+ {[%clk 0:00:08]}  Kh6 {[%clk 0:00:10]} 72. Kg3 {[%clk 0:00:08]}  Ra5 {[%clk 0:00:09]} 73. Re4 {[%clk 0:00:08]}  Kg5 {[%clk 0:00:09]} 74. Rg4+ {[%clk 0:00:09]}  Kf5 {[%clk 0:00:09]} 75. Rf4+ {[%clk 0:00:09]}  Ke5 {[%clk 0:00:09]} 76. Rf3 {[%clk 0:00:10]}  Ra1 {[%clk 0:00:09]} 77. Re3+ {[%clk 0:00:10]}  Kf5 {[%clk 0:00:08]} 78. Rf3+ {[%clk 0:00:10]}  Kg5 {[%clk 0:00:08]} 79. Re3 {[%clk 0:00:11]}  Ra5 {[%clk 0:00:08]} 80. Kf3 {[%clk 0:00:11]}  Rf5+ {[%clk 0:00:09]} 81. Kg3 {[%clk 0:00:11]}  Kf6 {[%clk 0:00:09]} 82. Rf3 {[%clk 0:00:11]}  Rxf3+ {[%clk 0:00:09]} 83. Kxf3 {[%clk 0:00:12]} 1/2-1/2


[Site "https://www.chess.com"]

[Event "Titled Tuesday Blitz February 28 Late 2023"]
[White "Mortazavi, Ali"]
[Black "Paszewski, Mateusz"]
[WhiteFideId "401323"]
[BlackFideId "1141058"]
[WhiteElo "2339"]
[BlackElo "2223"]
[Result "1-0"]
[Round "03"]
[TimeControl "180+2"]
[Date "2023.02.28"]
[WhiteClock "0:00:39"]
[BlackClock "0:00:02"]

1. Nf3 {[%clk 0:03:00]}  c5 {[%clk 0:02:56]} 2. g3 {[%clk 0:03:01]}  Nc6 {[%clk 0:02:56]} 3. Bg2 {[%clk 0:03:02]}  g6 {[%clk 0:02:57]} 4. O-O {[%clk 0:03:03]}  Bg7 {[%clk 0:02:57]} 5. d3 {[%clk 0:02:58]}  e5 {[%clk 0:02:55]} 6. c4 {[%clk 0:02:58]}  Nge7 {[%clk 0:02:55]} 7. Nc3 {[%clk 0:02:59]}  O-O {[%clk 0:02:55]} 8. Ne1 {[%clk 0:02:59]}  d6 {[%clk 0:02:47]} 9. Nc2 {[%clk 0:02:58]}  Be6 {[%clk 0:02:45]} 10. Ne3 {[%clk 0:02:58]}  Qd7 {[%clk 0:02:44]} 11. Ned5 {[%clk 0:02:49]}  Bh3 {[%clk 0:02:39]} 12. Rb1 {[%clk 0:02:32]}  Bxg2 {[%clk 0:02:36]} 13. Kxg2 {[%clk 0:02:33]}  Nxd5 {[%clk 0:02:35]} 14. Nxd5 {[%clk 0:02:31]}  Ne7 {[%clk 0:02:35]} 15. Nxe7+ {[%clk 0:02:30]}  Qxe7 {[%clk 0:02:35]} 16. e4 {[%clk 0:02:30]}  f5 {[%clk 0:02:34]} 17. f3 {[%clk 0:02:30]}  b6 {[%clk 0:02:21]} 18. b4 {[%clk 0:02:28]}  Rf7 {[%clk 0:02:15]} 19. a4 {[%clk 0:02:19]}  Raf8 {[%clk 0:02:14]} 20. a5 {[%clk 0:02:08]}  h5 {[%clk 0:02:03]} 21. axb6 {[%clk 0:02:08]}  axb6 {[%clk 0:02:03]} 22. bxc5 {[%clk 0:02:06]}  bxc5 {[%clk 0:02:03]} 23. Rb6 {[%clk 0:01:56]}  h4 {[%clk 0:01:43]} 24. gxh4 {[%clk 0:01:56]}  Qxh4 {[%clk 0:01:21]} 25. Rxd6 {[%clk 0:01:44]}  fxe4 {[%clk 0:01:21]} 26. dxe4 {[%clk 0:01:44]}  g5 {[%clk 0:01:01]} 27. h3 {[%clk 0:01:16]}  Ra7 {[%clk 0:00:20]} 28. Be3 {[%clk 0:01:00]}  Ra2+ {[%clk 0:00:16]} 29. Rf2 {[%clk 0:01:00]}  Rxf2+ {[%clk 0:00:09]} 30. Bxf2 {[%clk 0:01:00]}  Qh5 {[%clk 0:00:09]} 31. Rd8 {[%clk 0:00:47]}  Kh8 {[%clk 0:00:04]} 32. Bxc5 {[%clk 0:00:44]}  Rxd8 {[%clk 0:00:01]} 33. Qxd8+ {[%clk 0:00:44]}  Kh7 {[%clk 0:00:02]} 34. Qd7 {[%clk 0:00:39]} 1-0


[Site "https://www.chess.com"]